[Event "Chinese League Division-A 2024"]
[Site "Fuling Chongqing"]
[Date "2024.07.04"]
[Round "8.24"]
[White "Ding, Yixin"]
[Black "Zhang, Xiao"]
[Result "1-0"]
[ECO "C26"]
[WhiteElo "2397"]
[BlackElo "2193"]
[Annotator "RC"]
[PlyCount "137"]
[EventDate "2024.06.28"]
[EventType "team-tourn"]
[EventCountry "CHN"]
[SourceTitle "playchess.com"]
[Source "ChessBase"]
[SourceQuality "1"]
[TimeControl "40/5400+30:1800+30"]

1. e4 {[%emt 0:00:02]} e5 {[%emt 0:00:09]} 2. Nf3 {[%emt 0:00:05]} Nc6 {[%emt 0:00:05]} 3. g3 {[%emt 0:00:12]} Nf6 {[%emt 0:00:18]} 4. d3 {[%emt 0:00:06]} Bc5 {[%emt 0:00:19]} 5. Bg2 {[%emt 0:00:04]} d6 {[%emt 0:01:48]} 6. Nc3 {[%emt 0:00:06]} a5 {[%emt 0:03:29]} 7. h3 {[%emt 0:00:06]} O-O {[%emt 0:03:14]} 8. O-O {[%emt 0:00:10]} Be6 {[%emt 0:03:06]} 9. Na4 {[%emt 0:01:50]} Ba7 {[%emt 0:01:50]} 10. c4 {[%emt 0:00:07]} Nd7 {[%emt 0:04:43]} 11. Nc3 {[%emt 0:01:51]} h6 {[%emt 0:03:13]} 12. Be3 {[%emt 0:06:59]} Bxe3 {[%emt 0:11:57]} 13. fxe3 {[%emt 0:00:02]} f5 {[%emt 0:12:56]} 14. exf5 {[%emt 0:02:09]} Bxf5 {[%emt 0:00:44]} 15. Nh4 {[%emt 0:03:51]} Qg5 {[%emt 0:02:13]} 16. Nxf5 {[%emt 0:22:22]} Rxf5 {[%emt 0:00:05]} 17. Rxf5 {[%emt 0:00:04]} Qxf5 {[%emt 0:00:04]} 18. Qe2 {[%emt 0:00:04]} Nc5 {[%emt 0:03:35]} 19. Rd1 {[%emt 0:02:25]} Re8 {[%emt 0:01:37]} 20. Nd5 {[%emt 0:05:31]} Qd7 {[%emt 0:01:50]} 21. Qh5 {[%emt 0:12:01]} Rf8 {[%emt 0:05:34]} 22. d4 {[%emt 0:03:48]} exd4 {[%emt 0:06:16]} 23. exd4 {[%emt 0:00:02]} Ne6 {[%emt 0:02:19]} 24. Qg4 {[%emt 0:03:39]} Rf7 {[%emt 0:03:15]} 25. Ne3 {[%emt 0:11:42]} Ncd8 {[%emt 0:01:17]} 26. Nf5 {[%emt 0:03:37]} Kh8 {[%emt 0:01:11]} 27. Rf1 {[%emt 0:02:26]} Rf6 {[%emt 0:07:04]} 28. d5 {[%emt 0:02:41]} Nc5 {[%emt 0:00:34]} 29. h4 {[%emt 0:04:08]} Nd3 {[%emt 0:03:26]} 30. Kh2 {[%emt 0:03:38]} Qf7 {[%emt 0:02:47]} 31. Bh3 {[%emt 0:02:10]} Ne5 {[%emt 0:01:46]} 32. Qe2 {[%emt 0:00:43]} Qf8 {[%emt 0:01:40]} 33. h5 {[%emt 0:04:16]} Ndf7 {[%emt 0:00:46]} 34. Nh4 {[%emt 0:00:13]} Rxf1 {[%emt 0:04:12]} 35. Qxf1 {[%emt 0:00:01]} Qe8 {[%emt 0:00:43]} 36. Be6 {[%emt 0:01:24]} Ng5 {[%emt 0:00:45]} 37. Qf5 {[%emt 0:00:09]} Qd8 {[%emt 0:02:32]} 38. c5 {[%emt 0:02:25]} b6 {[%emt 0:01:40]} 39. cxd6 {[%emt 0:00:13]} cxd6 {[%emt 0:00:02]} 40. b3 {[%emt 0:00:00]} Qe8 {[%emt 0:00:00]} 41. Kg2 {[%emt 0:06:54]} Qd8 {[%emt 0:07:35]} 42. a4 {[%emt 0:06:15]} Qe8 {[%emt 0:00:17]} 43. Ng6+ {[%emt 0:01:31]} Nxg6 {[%emt 0:00:05]} 44. hxg6 {[%emt 0:00:02]} Qe7 {[%emt 0:03:11]} 45. Kf2 {[%emt 0:07:04]} Qe8 {[%emt 0:01:20]} 46. Ke3 {[%emt 0:00:21]} Qe7 {[%emt 0:00:47]} 47. Kd4 {[%emt 0:00:13]} Qd8 {[%emt 0:00:48]} 48. Kd3 {[%emt 0:01:12]} Qe7 {[%emt 0:00:40]} 49. Bf7 {[%emt 0:03:32]} Qc7 {[%emt 0:01:46]} 50. Qf4 {[%emt 0:00:16]} Qe7 {[%emt 0:00:51]} 51. Qe3 {[%emt 0:00:16]} Qd8 {[%emt 0:01:34]} 52. Kc4 {[%emt 0:06:46]} Nxf7 {[%emt 0:00:40]} 53. gxf7 {[%emt 0:00:01]} Qc7+ {[%emt 0:00:05]} 54. Kb5 {[%emt 0:00:02]} Qxf7 {[%emt 0:00:07]} 55. Kc6 {[%emt 0:00:08]} Qf6 {[%emt 0:05:29]} 56. Qxb6 {[%emt 0:01:28]} Qc3+ {[%emt 0:00:29]} 57. Kxd6 {[%emt 0:00:50]} Qxg3+ {[%emt 0:00:28]} 58. Kd7 {[%emt 0:01:12]} h5 {[%emt 0:02:24]} 59. d6 {[%emt 0:00:05]} Qc3 {[%emt 0:08:15]} 60. Qc6 {[%emt 0:00:53]} Qxb3 {[%emt 0:01:55]} 61. Kc7 {[%emt 0:00:01]} Qg3 {[%emt 0:01:55]} 62. Qe8+ {[%emt 0:00:10]} Kh7 {[%emt 0:00:04]} 63. Qxh5+ {[%emt 0:00:04]} Kg8 {[%emt 0:00:03]} 64. Qd5+ {[%emt 0:00:06]} Kf8 {[%emt 0:01:16]} 65. Kb7 {[%emt 0:00:59]} Qh4 {[%emt 0:03:05]} 66. Kc8 {[%emt 0:02:09]} Qxa4 {[%emt 0:01:01]} 67. d7 {[%emt 0:00:19]} Qc2+ {[%emt 0:01:59]} 68. Kb7 {[%emt 0:00:19]} Qb2+ {[%emt 0:00:24]} 69. Ka8 {[%emt 0:00:08]} 1-0

[Event "Chinese League Division-A 2024"]
[Site "Fuling Chongqing"]
[Date "2024.07.04"]
[Round "8.25"]
[White "Hu, Yu A."]
[Black "Bai, Xue"]
[Result "1-0"]
[ECO "C27"]
[WhiteElo "2127"]
[BlackElo "2114"]
[Annotator "RC"]
[PlyCount "41"]
[EventDate "2024.06.28"]
[EventType "team-tourn"]
[EventCountry "CHN"]
[SourceTitle "playchess.com"]
[Source "ChessBase"]
[SourceQuality "1"]
[TimeControl "40/5400+30:1800+30"]

1. e4 {[%emt 0:00:04]} e5 {[%emt 0:00:05]} 2. Bc4 {[%emt 0:00:07]} Nf6 {[%emt 0:00:44]} 3. d3 {[%emt 0:00:08]} Bc5 {[%emt 0:01:25]} 4. Nc3 {[%emt 0:00:13]} O-O {[%emt 0:02:28]} 5. f4 {[%emt 0:12:19]} d5 {[%emt 0:16:01]} 6. Nxd5 {[%emt 0:02:02]} Ng4 {[%emt 0:01:12]} 7. f5 {[%emt 0:00:41]} Nf2 {[%emt 0:16:59]} 8. Qh5 {[%emt 0:00:15]} g6 {[%emt 0:05:46]} 9. fxg6 {[%emt 0:10:55]} hxg6 {[%emt 0:00:04]} 10. Ne7+ {[%emt 0:08:38]} Qxe7 {[%emt 0:01:49]} 11. Qxg6+ {[%emt 0:00:06]} Kh8 {[%emt 0:00:03]} 12. Qh6+ {[%emt 0:00:07]} Kg8 {[%emt 0:00:03]} 13. Bg5 {[%emt 0:00:13]} Qd6 {[%emt 0:13:18]} 14. Bf6 {[%emt 0:00:37]} Qxf6 {[%emt 0:00:04]} 15. Qxf6 {[%emt 0:00:07]} Be6 {[%emt 0:01:31]} 16. Bxe6 {[%emt 0:10:34]} fxe6 {[%emt 0:00:06]} 17. Qxe6+ {[%emt 0:00:04]} Kh7 {[%emt 0:00:41]} 18. Nh3 {[%emt 0:00:53]} Nc6 {[%emt 0:03:27]} 19. Nxf2 {[%emt 0:04:22]} Bxf2+ {[%emt 0:01:02]} 20. Kd2 {[%emt 0:00:10]} Bd4 {[%emt 0:00:43]} 21. Raf1 {[%emt 0:00:20]} 1-0

[Event "Chinese League Division-A 2024"]
[Site "Fuling Chongqing"]
[Date "2024.07.04"]
[Round "8.26"]
[White "Xu, Yinglun"]
[Black "Wang, Hao"]
[Result "1/2-1/2"]
[ECO "D10"]
[WhiteElo "2526"]
[BlackElo "2702"]
[Annotator "TA"]
[PlyCount "64"]
[EventDate "2024.06.28"]
[EventType "team-tourn"]
[EventCountry "CHN"]
[SourceTitle "playchess.com"]
[Source "ChessBase"]
[SourceQuality "1"]
[TimeControl "40/5400+30:1800+30"]

{[%evp 12,64,15,22,25,29,30,28,27,18,32,21,31,27,30,35,28,31,37,23,23,19,29,12,16,15,49,41,35,26,27,33,34,37,31,37,30,32,27,29,35,28,32,0,2,0,0,0,0,0,0,0,0,0,0]} 1. d4 {[%emt 0:00:04]} d5 {[%emt 0:00:04]} 2. c4 {[%emt 0:00:07]} c6 {[%emt 0:00:05]} 3. cxd5 {[%emt 0:00:35]} cxd5 {[%emt 0:00:06]} 4. Nc3 {[%emt 0:00:07]} Nf6 {[%emt 0:01:00]} 5. Bf4 {[%emt 0:00:27]} Nc6 {[%emt 0:00:46]} 6. e3 {[%emt 0:00:11]} a6 {[%emt 0:00:18]} 7. Be2 {[%emt 0:01:28]} e6 {[%emt 0:01:34]} 8. Nf3 {[%emt 0:01:05]} Bd6 {[%emt 0:00:48]} 9. Ne5 {[%emt 0:02:35]} Qc7 {[%emt 0:01:25][%cal Rc6e5] White has an edge.} 10. Rc1 {[%emt 0:07:53]} Bd7 {[%emt 0:03:14][%cal Rc6e5]} 11. O-O {[%emt 0:01:25]} Qb8 {[%emt 0:03:03]} (11... Nxe5 12. Nb5 Bxb5 13. Rxc7 Bxe2 14. Qxe2 $16) 12. Nxd7 {[%emt 0:01:47]} Nxd7 {[%emt 0:00:07]} 13. Bxd6 {[%emt 0:00:10]} Qxd6 {[%emt 0:00:07]} 14. Na4 {[%emt 0:04:52]} O-O {[%emt 0:00:17]} 15. Qd2 {[%emt 0:00:12]} Rfc8 {[%emt 0:02:02]} 16. a3 {[%emt 0:00:29]} Ne7 {[%emt 0:01:42]} 17. Rxc8+ {[%emt 0:00:49]} Rxc8 {[%emt 0:00:07]} 18. b4 {[%emt 0:00:40]} a5 {[%emt 0:01:32]} 19. Nc5 $1 {[%emt 0:04:31]} axb4 {[%emt 0:03:27]} 20. Nxb7 {[%emt 0:00:26]} Qc7 {[%emt 0:00:09]} 21. Qxb4 {[%emt 0:00:26]} Nc6 {[%emt 0:00:10]} 22. Qb5 {[%emt 0:00:40]} Rb8 $1 {[%emt 0:00:13][%cal Bc8b8,Bb8b7,Bb7b1,Bb1a1,Ba1a2][%mdl 32]} 23. Rc1 $1 {[%emt 0:00:14]} Qxb7 {[%emt 0:00:05]} 24. Qxb7 {[%emt 0:00:17]} Rxb7 {[%emt 0:00:07]} 25. Rxc6 $14 {[%emt 0:00:05][%mdl 4096] Endgame. And now a4 would win. KRB-KRN} Rb1+ {[%emt 0:00:12]} 26. Bf1 {[%emt 0:00:08] Rc7 would now be deadly.} g5 {[%emt 0:00:04]} 27. Rc3 {[%emt 0:01:23]} Ra1 {[%emt 0:00:10] The position is equal.} 28. f3 {[%emt 0:00:10]} h5 {[%emt 0:00:39]} 29. Kf2 {[%emt 0:00:19]} h4 {[%emt 0:00:17]} 30. g4 {[%emt 0:00:18]} Ra2+ {[%emt 0:00:06]} 31. Kg1 {[%emt 0:00:07]} Ra1 {[%emt 0:00:06]} 32. Kf2 {[%emt 0:00:12]} Ra2+ {[%emt 0:02:06] Weighted Error Value: White=0.04 (flawless) /Black=0.03 (flawless) .  Inaccurate:     	White=1     	Black=1      OK:         	White=10    	Black=15     Best:        	White=1     	Black=1      Strong:       	White=2     	Black=1} 1/2-1/2

[Event "Chinese League Division-A 2024"]
[Site "Fuling Chongqing"]
[Date "2024.07.04"]
[Round "8.27"]
[White "Zhao, Jun"]
[Black "Xie, Kaifan"]
[Result "1/2-1/2"]
[ECO "B13"]
[WhiteElo "2538"]
[BlackElo "2376"]
[Annotator "TA"]
[PlyCount "85"]
[EventDate "2024.06.28"]
[EventType "team-tourn"]
[EventCountry "CHN"]
[SourceTitle "playchess.com"]
[Source "ChessBase"]
[SourceQuality "1"]
[TimeControl "40/5400+30:1800+30"]

{[%evp 21,85,18,18,9,25,31,24,21,30,26,27,20,18,18,16,0,0,-14,8,0,0,0,0,0,0,0,0,0,0,-94,-51,-45,0,-28,-20,-28,-17,-35,0,0,0,0,0,0,0,-14,0,-14,0,-14,0,-14,0,0,0,0,0,0,0,0,0,0,0,0,0,0]} 1. e4 {[%emt 0:00:07]} c6 {[%emt 0:00:07]} 2. d4 {[%emt 0:00:15]} d5 {[%emt 0:00:31]} 3. exd5 {[%emt 0:00:07]} cxd5 {[%emt 0:00:09]} 4. Bd3 {[%emt 0:00:08]} Nc6 {[%emt 0:00:14]} 5. c3 {[%emt 0:00:09]} Nf6 {[%emt 0:00:15]} 6. Nf3 {[%emt 0:00:20]} Bg4 {[%emt 0:04:51]} 7. h3 {[%emt 0:00:14]} Bh5 {[%emt 0:01:22]} 8. Bf4 {[%emt 0:00:21]} e6 {[%emt 0:07:38]} 9. Nbd2 {[%emt 0:00:19]} Bd6 {[%emt 0:00:20]} 10. Bxd6 {[%emt 0:00:09]} Qxd6 {[%emt 0:00:04]} 11. O-O {[%emt 0:00:07]} O-O {[%emt 0:00:31]} 12. Re1 {[%emt 0:00:09]} Qc7 {[%emt 0:05:20]} 13. Qb1 {[%emt 0:16:51]} Bg6 {[%emt 0:03:54]} 14. Bxg6 {[%emt 0:00:14] White has an edge.} hxg6 {[%emt 0:00:02]} 15. Qd3 {[%emt 0:02:59]} Rfe8 {[%emt 0:02:21]} 16. a4 {[%emt 0:08:53]} Rad8 {[%emt 0:02:45]} (16... Qf4 {looks sharper.} 17. Ne5 Rac8 18. a5 Nxe5 19. Rxe5 Qh6) 17. Re3 {[%emt 0:04:44]} Qb6 {[%emt 0:04:18]} 18. b3 {[%emt 0:18:05]} Rc8 {[%emt 0:04:27]} 19. Rae1 {[%emt 0:00:27]} Qc7 {[%emt 0:01:47]} 20. Ne5 {[%emt 0:04:21]} Ne7 {[%emt 0:21:13][%cal Bc6e7,Be7d5,Bd5e3][%mdl 32]} 21. g4 {[%emt 0:00:12]} Ne4 {[%emt 0:03:15]} 22. Nxe4 {[%emt 0:12:08]} dxe4 {[%emt 0:00:06]} 23. Qxe4 {[%emt 0:00:05] Rf3 is the strong threat.} Nd5 {[%emt 0:00:05]} 24. c4 {[%emt 0:00:36]} Nxe3 {[%emt 0:00:07]} 25. fxe3 {[%emt 0:00:06]} (25. Rxe3 $11 Rcd8 26. g5) 25... g5 {[%emt 0:07:36]} 26. Kg2 {[%emt 0:00:44]} Qb6 {[%emt 0:02:48]} 27. Qc2 {[%emt 0:06:55]} Qd6 {[%emt 0:02:44]} 28. Nf3 {[%emt 0:01:57]} f6 {[%emt 0:01:22]} 29. e4 {[%emt 0:00:42]} Rcd8 {[%emt 0:06:00]} 30. c5 {[%emt 0:03:08] The position is equal.} Qc6 {[%emt 0:03:13]} 31. b4 {[%emt 0:00:49]} a6 {[%emt 0:00:22]} 32. Qb3 {[%emt 0:01:36]} Qc7 {[%emt 0:01:43]} 33. a5 {[%emt 0:05:57]} Kh8 {[%emt 0:02:21]} 34. Qc4 {[%emt 0:02:13]} Rd7 {[%emt 0:00:45]} 35. Kf2 {[%emt 0:00:46]} Red8 {[%emt 0:06:14]} 36. Kg2 {[%emt 0:06:42]} Qf4 {[%emt 0:01:07]} 37. Qxe6 {[%emt 0:02:12]} Rxd4 {[%emt 0:00:27]} 38. Nxd4 {[%emt 0:00:05]} Rxd4 $11 {[%emt 0:00:54] KQR-KQR} 39. Qe8+ {[%emt 0:00:36]} Kh7 {[%emt 0:00:01]} 40. Qh5+ {[%emt 0:00:00]} Kg8 {[%emt 0:00:00]} 41. Qe8+ {[%emt 0:00:10]} Kh7 {[%emt 0:00:06]} 42. Qh5+ {[%emt 0:00:05]} Kg8 {[%emt 0:00:02] [#] ( -> ...Rd2+)} 43. Qe8+ {[%emt 0:00:38] Weighted Error Value: White=0.11 (very precise) /Black=0.11 (very precise) .  Mistake:       	White=1     	---        Inaccurate:     	White=1     	Black=3      OK:         	White=12    	Black=8      Best:        	White=2     	Black=1} 1/2-1/2

[Event "Chinese League Division-A 2024"]
[Site "Fuling Chongqing"]
[Date "2024.07.04"]
[Round "8.28"]
[White "Wu, Yixing"]
[Black "Pang, Tao"]
[Result "1-0"]
[ECO "D41"]
[WhiteElo "2326"]
[BlackElo "2495"]
[Annotator "TA"]
[PlyCount "117"]
[EventDate "2024.06.28"]
[EventType "team-tourn"]
[EventCountry "CHN"]
[SourceTitle "playchess.com"]
[Source "ChessBase"]
[SourceQuality "1"]
[TimeControl "40/5400+30:1800+30"]

{[%evp 13,117,22,33,37,41,28,43,3,39,39,62,66,54,56,92,99,116,114,97,93,97,97,114,71,66,77,75,71,71,64,79,60,62,61,66,68,70,63,68,65,65,64,69,66,68,67,95,97,95,100,106,104,104,91,116,115,115,115,125,115,125,84,104,76,141,125,156,125,125,125,125,113,156,156,156,155,155,71,155,125,122,131,155,155,155,155,193,134,628,485,1871,1861,29967,29968,29968,29962,29972,29973,29973,29974,29974,29975,29976,29973,29977,29974]} 1. Nf3 {[%emt 0:00:03]} Nf6 {[%emt 0:00:41][%cal Bg8f6,Bf6d5,Bd5b4,Bb4c6][%mdl 32]} 2. g3 {[%emt 0:00:13]} c5 {[%emt 0:04:17]} 3. c4 {[%emt 0:00:10]} Nc6 {[%emt 0:02:02]} 4. Nc3 {[%emt 0:02:56]} d5 {[%emt 0:00:37]} 5. d4 {[%emt 0:00:10]} e6 {[%emt 0:21:39]} 6. cxd5 {[%emt 0:00:53]} Nxd5 {[%emt 0:00:16]} 7. Bg2 {[%emt 0:04:26]} cxd4 {[%emt 0:03:36]} 8. Nxd4 {[%emt 0:00:22]} Ndb4 {[%emt 0:05:13]} 9. Nxc6 {[%emt 0:15:41][%csl Gc6][%cal Rd1d8]} Qxd1+ {[%emt 0:00:12]} 10. Kxd1 {[%emt 0:00:06] White is slightly better.} Nxc6 {[%emt 0:00:35]} 11. Nb5 {[%emt 0:07:33]} Kd8 {[%emt 0:09:06][%cal Be8d8,Bd8c8,Bc8b8,Bb8a7][%mdl 32] Prevents Nc7} 12. Be3 {[%emt 0:19:24]} Bd7 {[%emt 0:01:27]} 13. Rc1 {[%emt 0:03:26]} Be7 {[%emt 0:02:05]} 14. Rc2 {[%emt 0:04:29] White is much more active. The black rooks are passive.} a6 {[%emt 0:09:12]} 15. Bb6+ {[%emt 0:00:44]} Kc8 {[%emt 0:00:04]} 16. Na7+ {[%emt 0:02:54]} Kb8 {[%emt 0:00:19]} 17. Nxc6+ {[%emt 0:00:06]} Bxc6 {[%emt 0:00:52]} 18. Rxc6 {[%emt 0:09:02]} bxc6 {[%emt 0:00:11]} 19. Bxc6 {[%emt 0:00:05] A strong pair of Bishops.} Ra7 {[%emt 0:04:11]} 20. Bxa7+ {[%emt 0:00:07]} Kxa7 $16 {[%emt 0:00:02][%mdl 4096] Endgame. KRB-KRB} 21. Be4 {[%emt 0:00:57]} Bf6 {[%emt 0:03:01]} 22. Kc2 {[%emt 0:01:07]} Rc8+ {[%emt 0:01:09]} 23. Kb1 {[%emt 0:00:34]} Rd8 {[%emt 0:01:02] Against Rd1} 24. Bd3 {[%emt 0:00:16]} ({But not} 24. Bxh7 Rd2 $11) 24... Kb6 {[%emt 0:00:47]} 25. Rc1 {[%emt 0:00:26]} ({Worse is} 25. Bxh7 g6 26. Kc2 Rh8 27. Bxg6 fxg6 $17) 25... h6 {[%emt 0:01:30]} 26. b4 {[%emt 0:02:53]} Rd7 {[%emt 0:02:38]} 27. a3 {[%emt 0:10:31]} Bd4 {[%emt 0:00:55]} 28. f3 {[%emt 0:00:59]} a5 {[%emt 0:00:31]} 29. Rc4 {[%emt 0:00:08]} e5 {[%emt 0:04:24]} 30. Ka2 {[%emt 0:04:47]} Ra7 {[%emt 0:02:36]} 31. Kb3 {[%emt 0:00:42]} axb4 {[%emt 0:00:27]} 32. Rxb4+ {[%emt 0:00:11]} Kc7 {[%emt 0:00:29]} 33. a4 {[%emt 0:00:42][%cal Ba3a4,Ba4a5,Ba5a6][%mdl 32]} Rb7 {[%emt 0:01:54]} 34. Rxb7+ {[%emt 0:05:14]} Kxb7 {[%emt 0:00:05] KB-KB} 35. Kc4 {[%emt 0:00:12]} Kc6 {[%emt 0:00:24]} 36. Be4+ {[%emt 0:00:10]} Kd6 {[%emt 0:00:08]} 37. a5 {[%emt 0:01:05]} Bg1 {[%emt 0:00:19]} 38. a6 {[%emt 0:00:53]} Ba7 {[%emt 0:01:14]} (38... Kc7 $142) 39. g4 {[%emt 0:00:17]} f6 {[%emt 0:12:00]} 40. Bg6 {[%emt 0:00:00]} Bg1 {[%emt 0:00:00]} 41. h3 {[%emt 0:03:27]} Kc6 {[%emt 0:07:10]} 42. Be4+ {[%emt 0:01:29]} Kd6 {[%emt 0:00:19]} 43. Kd3 {[%emt 0:00:14] aiming for e3.} Ba7 {[%emt 0:01:13]} 44. Bg6 {[%emt 0:01:01]} Kc6 {[%emt 0:01:40] [#]} 45. Bf7 {[%emt 0:00:40]} (45. Bf5 $142 $1) 45... Kb5 {[%emt 0:01:10]} (45... Kb6 $142) 46. Bc4+ {[%emt 0:00:11]} Kc5 {[%emt 0:00:03]} 47. Be6 {[%emt 0:00:05]} Kb6 {[%emt 0:19:47] [#]} 48. Bc8 $1 {[%emt 0:00:19]} Kc7 {[%emt 0:00:05]} 49. Bb7 {[%emt 0:00:07]} h5 {[%emt 0:05:16]} 50. gxh5 {[%emt 0:06:58]} ({White should try} 50. Ke4 $18 h4 51. g5) 50... f5 $2 {[%emt 0:00:16][%mdl 8192] A mistake that costs the game.} (50... Bf2 $16 51. Ke4 Bh4) 51. Kc4 $18 {[%emt 0:00:08] Kd5 would now be deadly.} e4 {[%emt 0:02:52]} (51... Kd6 $142 52. Bc8 f4) 52. Kd5 {[%emt 0:02:44]} exf3 {[%emt 0:00:52]} 53. exf3 {[%emt 0:00:04] White mates.} f4 {[%emt 0:01:59]} 54. Ke5 {[%emt 0:00:27]} Kd7 {[%emt 0:00:13]} 55. Kxf4 {[%emt 0:01:57]} Ke6 {[%emt 0:01:01]} 56. Kg5 {[%emt 0:00:04]} Kf7 {[%emt 0:01:08]} 57. Bd5+ {[%emt 0:00:04]} Kf8 {[%emt 0:00:04]} 58. Kg6 {[%emt 0:00:04]} Be3 {[%emt 0:00:07]} 59. Bc4 {[%emt 0:00:03] Weighted Error Value: White=0.08 (flawless) /Black=0.40.  Loses game:     	---       	Black=1      Mistake:       	White=2     	Black=3      Inaccurate:     	White=3     	Black=5      OK:         	White=21    	Black=9      Best:        	White=2     	Black=2      Strong:       	White=1     	---} 1-0

[Event "Chinese League Division-A 2024"]
[Site "Fuling Chongqing"]
[Date "2024.07.04"]
[Round "8.29"]
[White "Song, Yuxin"]
[Black "Chen, Yining"]
[Result "1-0"]
[ECO "B10"]
[WhiteElo "2383"]
[BlackElo "2300"]
[Annotator "TA"]
[PlyCount "93"]
[EventDate "2024.06.28"]
[EventType "team-tourn"]
[EventCountry "CHN"]
[SourceTitle "playchess.com"]
[Source "ChessBase"]
[SourceQuality "1"]
[TimeControl "40/5400+30:1800+30"]

{[%evp 14,93,16,0,19,13,0,0,28,0,0,0,7,-7,58,54,67,70,84,83,92,94,90,90,88,85,100,41,41,51,41,54,62,58,55,0,58,60,72,58,74,66,127,120,125,76,68,68,99,100,145,145,146,149,175,184,182,184,184,163,169,160,152,167,199,149,245,241,222,81,114,119,162,153,527,147,651,654,29960,29961,6111,5884]} 1. e4 {[%emt 0:00:02]} c6 {[%emt 0:00:08]} 2. Nf3 {[%emt 0:00:06]} d5 {[%emt 0:00:08]} 3. d3 {[%emt 0:00:05]} dxe4 {[%emt 0:01:05]} 4. dxe4 {[%emt 0:00:02]} Qxd1+ {[%emt 0:00:07]} 5. Kxd1 {[%emt 0:00:03]} Nf6 {[%emt 0:00:08]} 6. Nbd2 {[%emt 0:00:05] B10: Caro-Kann: 2 d3 and 2 c4.} g6 {[%emt 0:02:39]} 7. a4 {[%emt 0:00:12]} Bg7 {[%emt 0:14:25]} 8. a5 {[%emt 0:00:30]} Bg4 $146 {[%emt 0:02:19]} ({Predecessor:} 8... O-O 9. Ne1 Ng4 10. Nd3 Rd8 11. h3 Rxd3 12. hxg4 Rd8 13. g5 Nd7 14. c3 Nc5 {1-0 Adam,R (2117)-Perkampus,L (2197) Biel HTO 56th 2023 (10)}) 9. Be2 {[%emt 0:00:19]} Nbd7 {[%emt 0:01:16]} 10. Ne1 {[%emt 0:00:09]} Bxe2+ {[%emt 0:00:32]} 11. Kxe2 {[%emt 0:00:01]} Nc5 {[%emt 0:02:21]} 12. f3 $1 {[%emt 0:00:02]} O-O-O {[%emt 0:04:40]} 13. Nc4 {[%emt 0:02:47]} Nfd7 {[%emt 0:14:29]} (13... Rd4 $11 14. Ne3 Ne8) 14. Be3 $14 {[%emt 0:01:01]} Kb8 {[%emt 0:02:25]} 15. c3 {[%emt 0:14:43]} f5 {[%emt 0:07:27]} 16. e5 {[%emt 0:05:52]} Ne6 {[%emt 0:04:47]} 17. Nd3 {[%emt 0:03:40]} g5 {[%emt 0:01:20]} 18. g3 $1 {[%emt 0:01:40]} Rhf8 {[%emt 0:01:56]} 19. f4 {[%emt 0:03:37]} Bh6 {[%emt 0:03:17]} 20. h4 {[%emt 0:05:51]} (20. Rhg1 $16) 20... gxf4 $14 {[%emt 0:02:02]} 21. gxf4 {[%emt 0:02:23]} Rg8 {[%emt 0:00:31]} 22. Rhg1 {[%emt 0:00:35]} Rc8 {[%emt 0:05:10]} 23. Kf3 {[%emt 0:05:27]} Rcd8 {[%emt 0:01:38]} 24. Ke2 {[%emt 0:06:10]} Rc8 $1 {[%emt 0:00:13]} 25. Rad1 {[%emt 0:00:17]} Rcd8 {[%emt 0:02:09]} 26. Nd2 {[%emt 0:03:35]} Rxg1 {[%emt 0:02:56]} 27. Rxg1 {[%emt 0:00:00]} Ndf8 {[%emt 0:00:35]} ({Black should try} 27... c5 $14) 28. Nf3 $16 {[%emt 0:01:00]} Ng6 {[%emt 0:05:24]} 29. Ng5 {[%emt 0:00:11]} (29. h5 $142 Ngxf4+ 30. Nxf4 Nxf4+ (30... Bxf4 $2 31. Nd4 $18) 31. Bxf4 Bxf4 32. Rg7) 29... Bxg5 $16 {[%emt 0:00:33]} 30. hxg5 {[%emt 0:00:06]} Rh8 {[%emt 0:03:18]} 31. Rh1 {[%emt 0:01:07]} Nd8 {[%emt 0:01:31]} 32. Kf3 {[%emt 0:06:48]} Ne6 {[%emt 0:03:41]} 33. Nc1 {[%emt 0:02:44]} c5 {[%emt 0:03:09]} 34. Ne2 {[%emt 0:01:30]} b6 {[%emt 0:00:41]} 35. Ng3 {[%emt 0:01:05]} Ng7 {[%emt 0:00:39]} 36. axb6 {[%emt 0:04:29]} axb6 {[%emt 0:00:03]} 37. b4 {[%emt 0:00:08]} cxb4 {[%emt 0:00:44]} 38. cxb4 {[%emt 0:00:06]} Kb7 {[%emt 0:03:35]} 39. b5 {[%emt 0:00:15]} ({White should play} 39. e6 $18 {Hoping for Bd4.} Nxe6 40. Nxf5) 39... e6 {[%emt 0:02:51] [#]} (39... Kc7 $16 40. e6 Nxe6 41. Nxf5 Kd7 42. Rd1+ (42. Bxb6 Rb8 $14) 42... Kc8) 40. Rd1 $1 $18 {[%emt 0:00:00]} Ne8 {[%emt 0:00:00] [#]} 41. Rd8 {[%emt 0:17:00]} (41. Rd7+ $1 $18 Kc8 42. Ra7) 41... Nc7 {[%emt 0:08:55]} 42. Rd6 {[%emt 0:01:54]} h6 {[%emt 0:01:27]} 43. Rxb6+ {[%emt 0:01:32]} (43. Bxb6 Nd5 $11 (43... hxg5 44. Bxc7 g4+ 45. Kf2 $11)) 43... Kc8 $2 {[%emt 0:00:13]} (43... Ka8 $16) 44. Rc6 $2 {[%emt 0:04:09]} (44. Nxf5 $18 {is the precise move to win. And now Nd6+ would win.} hxg5 45. Nd6+ (45. fxg5 $2 {too greedy.} Rf8 $19) 45... Kd7 46. Rb7 (46. fxg5 Rh3+ 47. Kf2 Rxe3 $15) 46... Rh3+ 47. Ke4 Rxe3+ 48. Kxe3) 44... Kb7 $2 {[%emt 0:02:20][%mdl 8192]} (44... Ne7 $16 45. Rc1 hxg5) 45. Nxf5 $18 {[%emt 0:02:44]} hxg5 {[%emt 0:12:27]} 46. Nd6+ {[%emt 0:00:19]} Kb8 {[%emt 0:00:10]} 47. Ba7+ {[%emt 0:00:15]} ({Inferior is} 47. fxg5 Nxe5+ 48. Ke4 Nxc6 49. bxc6 Nd5 $15) 1-0